[Event "Chinese League Division-A 2024"]
[Site "Fuling Chongqing"]
[Date "2024.07.06"]
[Round "9.15"]
[White "Wang, Chuqiao"]
[Black "Zhang, Xiao"]
[Result "1-0"]
[ECO "D38"]
[WhiteElo "2278"]
[BlackElo "2193"]
[Annotator "TA"]
[PlyCount "75"]
[EventDate "2024.06.28"]
[EventType "team-tourn"]
[EventCountry "CHN"]
[SourceTitle "playchess.com"]
[Source "ChessBase"]
[SourceQuality "1"]
[TimeControl "40/5400+30:1800+30"]

{[%evp 11,74,29,11,-3,27,32,30,29,2,21,20,26,55,72,83,25,129,82,126,120,103,72,108,58,64,25,43,36,45,42,102,112,93,127,736,734,729,720,1548,1548,1515,1518,1518,1506,1502,1399,29988,29989,29989,29990,29990,29991,29991,29990,29990,29991,29991,29992,29992,29993,29993,29993,29994,29995,29999]} 1. d4 {[%emt 0:00:03]} Nf6 {[%emt 0:00:04]} 2. c4 {[%emt 0:00:13]} e6 {[%emt 0:00:05]} 3. Nf3 {[%emt 0:00:20]} d5 {[%emt 0:00:10]} 4. Nc3 {[%emt 0:00:17]} Bb4 {[%emt 0:00:07]} 5. Qa4+ {[%emt 0:07:23]} Nc6 {[%emt 0:00:06]} 6. e3 {[%emt 0:00:04][%cal Be2e3,Be3d4,Bd4d5][%mdl 32]} O-O {[%emt 0:00:09]} 7. Qc2 {[%emt 0:00:16]} dxc4 {[%emt 0:00:20]} 8. Bxc4 {[%emt 0:00:57]} Bd6 {[%emt 0:00:05]} 9. O-O {[%emt 0:04:40] White has an edge.} e5 {[%emt 0:00:16]} 10. h3 {[%emt 0:02:39]} exd4 {[%emt 0:06:05]} 11. exd4 {[%emt 0:00:42]} a6 {[%emt 0:06:53]} 12. Bg5 {[%emt 0:07:18]} Nb4 {[%emt 0:10:24] Against Nd5} 13. Qc1 {[%emt 0:05:50]} (13. Qe2 $16) 13... Be7 {[%emt 0:13:48]} (13... b5 $11 14. Bb3 h6) 14. a3 $16 {[%emt 0:14:38]} Nc6 {[%emt 0:00:10]} 15. Re1 {[%emt 0:03:45]} Bf5 {[%emt 0:07:15]} 16. d5 {[%emt 0:11:30]} Nb8 {[%emt 0:03:06]} 17. Qe3 {[%emt 0:13:30] White is more active.} (17. Nh4 $16 Bg6 18. d6 Qxd6 19. Nxg6 hxg6 20. Bf4) 17... Bd6 $14 {[%emt 0:04:22]} 18. Nh4 {[%emt 0:01:08]} Bg6 {[%emt 0:00:28]} 19. Nxg6 {[%emt 0:03:37]} hxg6 {[%emt 0:02:32]} 20. Ne4 $36 {[%emt 0:01:31][%mdl 2048] Black must now prevent Bxf6. White has the initiative.} Be7 {[%emt 0:04:05]} ({Black should play} 20... Nbd7 $14) 21. Nxf6+ $16 {[%emt 0:03:47]} Bxf6 {[%emt 0:00:07]} 22. Bxf6 {[%emt 0:00:08]} gxf6 {[%emt 0:00:12][%mdl 8192] [#] A mistake that costs the game.} (22... Qxf6 $16 23. Qe7 b5) 23. Qh6 $1 $18 {[%emt 0:04:07][%cal Od5d6] Intending d6! and mate.} f5 {[%emt 0:00:38] [#]} 24. d6 $1 {[%emt 0:01:50][%mdl 512]} Qxd6 {[%emt 0:02:10] [#]} (24... Qf6 25. dxc7) 25. Re6 $3 {[%emt 0:00:31][%mdl 512]} fxe6 {[%emt 0:00:26]} 26. Qxg6+ {[%emt 0:00:07]} Kh8 {[%emt 0:00:02]} 27. Qh6+ {[%emt 0:00:47]} (27. Qxe6 $2 Qxe6 28. Bxe6 Nc6 $19) 27... Kg8 {[%emt 0:00:08]} 28. Bxe6+ {[%emt 0:00:08]} (28. Qxe6+ Qxe6 29. Bxe6+ Kh8 $19) 28... Rf7 {[%emt 0:02:17]} 29. Qg6+ {[%emt 0:00:05] White mates.} Kh8 {[%emt 0:00:02][%cal Bg8h8,Bh8g7,Bg7h6,Bh6h7][%mdl 32]} 30. Qh5+ {[%emt 0:01:31]} Kg7 {[%emt 0:04:40]} 31. Qxf7+ {[%emt 0:00:06]} Kh6 {[%emt 0:00:05]} 32. Qf6+ {[%emt 0:00:37]} Kh7 {[%emt 0:00:06]} 33. Bxf5+ {[%emt 0:00:21]} Kg8 {[%emt 0:00:03]} 34. Be6+ {[%emt 0:01:10]} Kh7 {[%emt 0:00:03]} 35. Qf7+ {[%emt 0:00:35]} Kh6 {[%emt 0:00:04]} 36. h4 {[%emt 0:00:13]} Qe5 {[%emt 0:02:48]} 37. g4 {[%emt 0:00:15]} Qg7 {[%emt 0:00:20]} 38. Qh5# {[%emt 0:00:07] Weighted Error Value: White=0.11 (very precise) /Black=0.43.  Loses game:     	---       	Black=1      Mistake:       	White=2     	Black=2      Inaccurate:     	White=2     	Black=4      OK:         	White=5     	Black=4      Best:        	White=1     	Black=1      Strong:       	White=1     	---} 1-0

[Event "Chinese League Division-A 2024"]
[Site "Fuling Chongqing"]
[Date "2024.07.06"]
[Round "9.16"]
[White "Bai, Jinshi"]
[Black "Xu, Yi"]
[Result "1/2-1/2"]
[ECO "D37"]
[WhiteElo "2564"]
[BlackElo "2496"]
[Annotator "TA"]
[PlyCount "105"]
[EventDate "2024.06.28"]
[EventType "team-tourn"]
[EventCountry "CHN"]
[SourceTitle "playchess.com"]
[Source "ChessBase"]
[SourceQuality "1"]
[TimeControl "40/5400+30:1800+30"]

{[%evp 17,105,0,0,0,23,0,34,36,26,19,14,0,0,0,9,9,9,0,7,5,28,18,33,30,25,32,24,23,25,5,14,8,17,12,13,11,24,25,30,27,47,47,45,40,33,22,22,22,22,22,22,22,22,22,29,0,0,0,0,0,0,0,0,0,0,0,8,0,0,0,0,0,0,0,0,0,0,0,0,0,0,0,0,0,0,0,0,0,0,0]} 1. d4 {[%emt 0:00:06]} Nf6 {[%emt 0:00:04]} 2. c4 {[%emt 0:00:09]} e6 {[%emt 0:00:04]} 3. Nf3 {[%emt 0:00:18]} d5 {[%emt 0:00:05]} 4. Nc3 {[%emt 0:00:12]} Bb4 {[%emt 0:00:06]} 5. e3 {[%emt 0:00:46]} O-O {[%emt 0:00:25]} 6. Be2 {[%emt 0:00:06]} dxc4 {[%emt 0:04:12]} 7. O-O {[%emt 0:00:39]} c5 {[%emt 0:01:24]} 8. dxc5 {[%emt 0:00:25]} Bxc5 {[%emt 0:01:29]} 9. Bxc4 {[%emt 0:00:12]} a6 {[%emt 0:05:04]} 10. Bd3 {[%emt 0:00:43]} Nc6 {[%emt 0:01:49]} 11. a3 {[%emt 0:12:53]} Be7 {[%emt 0:01:35]} 12. b4 {[%emt 0:06:39] White is slightly better.} b5 {[%emt 0:03:53]} 13. Bb2 {[%emt 0:02:22]} Bb7 {[%emt 0:00:51]} 14. Ne4 {[%emt 0:04:28]} Nxe4 {[%emt 0:13:09]} 15. Bxe4 {[%emt 0:00:06]} Qxd1 {[%emt 0:02:08]} 16. Rfxd1 {[%emt 0:17:53] [#] And now Rd7 would win.} f5 {[%emt 0:01:55]} 17. Bc2 {[%emt 0:06:13]} Rfd8 {[%emt 0:02:58] Prevents Rd7.} 18. e4 {[%emt 0:06:39]} fxe4 {[%emt 0:03:46]} 19. Bxe4 {[%emt 0:00:11]} Rxd1+ {[%emt 0:00:15]} 20. Rxd1 {[%emt 0:00:05]} Rd8 {[%emt 0:00:24]} 21. Re1 {[%emt 0:09:59]} Bf6 {[%emt 0:03:03]} 22. Bxf6 {[%emt 0:01:03]} gxf6 {[%emt 0:00:06]} 23. g4 {[%emt 0:02:14]} Rd6 {[%emt 0:03:30]} 24. h4 {[%emt 0:02:12]} h6 {[%emt 0:04:10]} 25. g5 {[%emt 0:05:50]} hxg5 {[%emt 0:00:18]} 26. hxg5 {[%emt 0:00:03]} Kg7 {[%emt 0:02:00]} 27. Rc1 {[%emt 0:01:01]} fxg5 {[%emt 0:01:55]} 28. Nxg5 {[%emt 0:00:24]} Kf6 {[%emt 0:01:23]} 29. f4 {[%emt 0:00:30]} Ke7 $1 {[%emt 0:08:39]} 30. Kf2 {[%emt 0:09:45]} Nd8 $1 {[%emt 0:04:00]} 31. Ke3 {[%emt 0:00:12] Rc7+ is the strong threat.} Bxe4 {[%emt 0:02:28]} 32. Nxe4 $11 {[%emt 0:04:04][%mdl 4096] Endgame. KRN-KRN} Rc6 {[%emt 0:01:43]} 33. Rc5 {[%emt 0:00:56]} Rxc5 {[%emt 0:17:34]} 34. Nxc5 {[%emt 0:00:04] KN-KN} Nf7 $1 {[%emt 0:00:29]} 35. Kd4 {[%emt 0:02:28]} Kd6 {[%emt 0:01:47]} 36. Ne4+ {[%emt 0:00:19]} Kc6 {[%emt 0:01:39] The position is equal.} 37. Ng5 {[%emt 0:00:13]} Nd8 {[%emt 0:01:10]} 38. Ne4 {[%emt 0:04:49] [#] Hoping for Ke5.} (38. Ke5 $5 Kd7 $8 39. Nf3 $11) 38... Nf7 {[%emt 0:00:27]} 39. Ng5 {[%emt 0:01:36]} Nd8 {[%emt 0:00:01]} 40. Ke5 {[%emt 0:00:00]} Kd7 {[%emt 0:00:00]} 41. Ne4 {[%emt 0:04:06] Black must now prevent Nc5+.} (41. Kf6 $5) 41... Nc6+ {[%emt 0:06:51]} 42. Kf6 {[%emt 0:00:04]} Nd4 {[%emt 0:00:06]} 43. Kf7 {[%emt 0:07:27]} Kc6 {[%emt 0:06:59]} 44. Nc5 {[%emt 0:00:06]} Kd5 {[%emt 0:00:56]} 45. Nxa6 {[%emt 0:06:15]} e5 {[%emt 0:00:34]} 46. Nc7+ {[%emt 0:01:17]} Kc6 {[%emt 0:05:27]} 47. Nxb5 {[%emt 0:05:01]} Nxb5 {[%emt 0:00:12]} 48. fxe5 {[%emt 0:00:03] Threatening mate with e6.} Nxa3 {[%emt 0:00:07] KN-KPP} 49. e6 {[%emt 0:00:06] Intending e7 and mate.} Nb5 {[%emt 0:00:06]} 50. e7 {[%emt 0:00:05]} Nc7 {[%emt 0:00:11]} 51. b5+ {[%emt 0:00:09]} Kxb5 {[%emt 0:00:07]} 52. e8=Q+ {[%emt 0:00:04]} Nxe8 {[%emt 0:00:04]} 53. Kxe8 {[%emt 0:00:37] Weighted Error Value: White=0.02 (flawless) /Black=0.04 (flawless) .  Inaccurate:     	White=1     	Black=1      OK:         	White=17    	Black=25     Best:        	---       	Black=1      Strong:       	---       	Black=3} 1/2-1/2

[Event "Chinese League Division-A 2024"]
[Site "Fuling Chongqing"]
[Date "2024.07.06"]
[Round "9.17"]
[White "Meng, Yihan"]
[Black "Kong, Xiangrui"]
[Result "1-0"]
[ECO "C54"]
[WhiteElo "2268"]
[BlackElo "2439"]
[Annotator "TA"]
[PlyCount "47"]
[EventDate "2024.06.28"]
[EventType "team-tourn"]
[EventCountry "CHN"]
[SourceTitle "playchess.com"]
[Source "ChessBase"]
[SourceQuality "1"]
[TimeControl "40/5400+30:1800+30"]

{[%evp 15,47,33,28,30,16,21,15,-41,34,24,40,16,15,14,22,-17,-31,-14,62,65,110,112,184,155,200,223,1088,1072,1279,1241,29985,29986,29989,29990]} 1. e4 {[%emt 0:00:03]} e5 {[%emt 0:00:02]} 2. Nf3 {[%emt 0:00:06]} Nc6 {[%emt 0:00:03]} 3. Bc4 {[%emt 0:00:06]} Bc5 {[%emt 0:00:05]} 4. c3 {[%emt 0:00:07]} Nf6 {[%emt 0:00:03]} 5. d3 {[%emt 0:00:03]} O-O {[%emt 0:00:08]} 6. O-O {[%emt 0:00:06]} d5 {[%emt 0:00:02]} 7. exd5 {[%emt 0:00:06]} Nxd5 {[%emt 0:00:02]} 8. Re1 {[%emt 0:00:06]} Bg4 {[%emt 0:00:20]} 9. h3 {[%emt 0:00:05]} Bh5 {[%emt 0:00:03]} 10. Nbd2 {[%emt 0:00:05][%cal Bb1d2,Bd2e4,Be4g3][%mdl 32]} Nb6 {[%emt 0:01:30]} 11. Bb3 {[%emt 0:00:08]} (11. a4 $11) 11... Kh8 {[%emt 0:01:37]} ({Black should try} 11... Qxd3 $15 12. Nxe5 Qf5 (12... Qg3 13. Qxh5 Qxf2+ 14. Kh2 $14)) 12. Ne4 $14 {[%emt 0:01:34]} Nd7 {[%emt 0:00:11]} 13. Ng3 {[%emt 0:12:15]} Bxf3 {[%emt 0:00:15]} 14. Qxf3 {[%emt 0:00:06][%cal Ob3d5]} f5 {[%emt 0:00:01][%cal Oe5e4] Black is weak on the light squares} 15. d4 {[%emt 0:20:22]} (15. Nxf5 g6 16. Be6 gxf5 $17) 15... exd4 {[%emt 0:01:59]} 16. Bf4 {[%emt 0:00:22][%cal Bc1f4,Bf4d2,Bd2g5][%mdl 32] Prevents Nce5.} (16. Nxf5 $2 dxc3 17. Bc2 (17. bxc3 $2 g6 $19) 17... Nd4 18. Nxd4 Rxf3 (18... Bxd4 $2 19. Qd3 $19) 19. Nxf3 Qf6 $19 (19... cxb2 20. Bxb2 a5 21. Rad1 $11)) 16... g5 {[%emt 0:01:47]} (16... dxc3 $11 17. bxc3 g5) 17. Bd2 $36 {[%emt 0:03:49][%mdl 2048] White is more active. White is much more active.} Nde5 {[%emt 0:43:17]} 18. Qh5 {[%emt 0:05:57]} Qd6 {[%emt 0:04:52]} ({Not} 18... f4 $2 19. Ne4 b6 20. Nxg5 $18 (20. Qxg5 Be7 $18)) (18... g4 $16 {is a better defense.}) 19. Rad1 $18 {[%emt 0:17:51] [#] Strongly threatening cxd4.} d3 {[%emt 0:21:40]} 20. Bxg5 {[%emt 0:07:48]} ({Don't do} 20. Qxg5 Rf6 21. Nxf5 Qf8) 20... Ng4 $2 {[%emt 0:05:40]} (20... a5 21. Bh6 a4) 21. hxg4 {[%emt 0:02:09]} Qxg3 {[%emt 0:00:02]} 22. Bf7 {[%emt 0:08:11][%cal Rg5f6] This pair of bishops is nice.} ({Weaker is} 22. Be3 Bxe3 23. Rxe3 Qxg4 $18) 22... Qxf2+ {[%emt 0:08:31]} 23. Kh1 {[%emt 0:00:08][%cal Rg5f6]} fxg4 {[%emt 0:00:03]} 24. Bg6 {[%emt 0:00:32] Weighted Error Value: White=0.11 (very precise) /Black=0.46.  Mistake:       	White=1     	Black=4      Inaccurate:     	White=1     	Black=1      OK:         	White=5     	Black=4      Best:        	White=2     	Black=1} 1-0

[Event "Chinese League Division-A 2024"]
[Site "Fuling Chongqing"]
[Date "2024.07.06"]
[Round "9.18"]
[White "Ma, Qun"]
[Black "Gong, Sunle"]
[Result "1-0"]
[ECO "C42"]
[WhiteElo "2643"]
[BlackElo "2239"]
[Annotator "TA"]
[PlyCount "178"]
[EventDate "2024.06.28"]
[EventType "team-tourn"]
[EventCountry "CHN"]
[SourceTitle "playchess.com"]
[Source "ChessBase"]
[SourceQuality "1"]
[TimeControl "40/5400+30:1800+30"]

{[%evp 17,178,17,29,21,20,16,19,14,20,16,16,28,21,38,85,26,95,72,78,41,188,177,170,0,0,0,254,99,88,93,100,107,96,69,78,77,102,57,74,44,58,22,35,20,45,46,43,43,45,49,47,41,49,27,67,60,52,60,73,55,125,45,45,23,204,196,206,212,218,211,211,218,218,180,172,171,143,124,129,134,129,132,132,52,52,52,52,0,52,0,53,60,76,15,15,15,83,0,0,0,28,8,70,70,70,70,70,14,70,70,70,70,70,70,70,70,70,70,70,70,70,0,86,92,329,92,92,92,92,8,8,8,8,0,0,0,0,0,19,19,19,19,19,19,22,26,32,58,862,862,862,840,789,675,10328,10305,8502,6415,12838,12834,12366,10784,1731]} 1. e4 {[%emt 0:00:07]} e5 {[%emt 0:00:13]} 2. Nf3 {[%emt 0:00:09]} Nf6 {[%emt 0:00:09]} 3. Nxe5 {[%emt 0:00:14]} d6 {[%emt 0:00:05]} 4. Nf3 {[%emt 0:00:05]} Nxe4 {[%emt 0:00:04]} 5. d4 {[%emt 0:00:05]} d5 {[%emt 0:00:19]} 6. Bd3 {[%emt 0:00:06]} Bd6 {[%emt 0:00:05]} 7. O-O {[%emt 0:00:26]} O-O {[%emt 0:00:26]} 8. c4 {[%emt 0:00:06]} c6 {[%emt 0:00:03]} 9. Re1 {[%emt 0:00:33]} Bf5 {[%emt 0:00:15]} 10. Qc2 {[%emt 0:00:24]} Na6 {[%emt 0:02:20]} 11. a3 {[%emt 0:02:09] Inhibits Nb4.} Bg6 {[%emt 0:00:18]} 12. c5 {[%emt 0:00:13] The position is equal.} Bb8 {[%emt 0:00:07]} 13. Nc3 {[%emt 0:00:31][%cal Bb1c3,Bc3e2,Be2g3][%mdl 32]} f5 {[%emt 0:01:55]} 14. Ne2 {[%emt 0:01:04]} Bh5 {[%emt 0:00:36]} 15. Ng3 {[%emt 0:00:10]} Bg4 {[%emt 0:02:38]} (15... Bg6 $14 {is more appropriate.}) 16. Qb3 {[%emt 0:03:53]} (16. b4 $16) 16... Qd7 {[%emt 0:04:58]} (16... Bc7 $1 $11) 17. Ng5 $36 {[%emt 0:25:30][%mdl 2048] White is on the roll.} Kh8 {[%emt 0:12:07]} 18. f3 {[%emt 0:13:45]} Nxg3 {[%emt 0:02:56]} (18... h6 $1 $14) 19. fxg4 $18 {[%emt 0:00:06]} Qc7 {[%emt 0:32:42][%cal Og3e2]} 20. Nf3 $2 {[%emt 0:13:15]} (20. hxg3 Qxg3 21. Bd2 fxg4 $11) (20. Bxa6 $1 $18 Ne2+ 21. Rxe2 (21. Bxe2 $2 Qxh2+ 22. Kf2 fxg4+ 23. Ke3 Qg3+ 24. Nf3 gxf3 $19) 21... Qxh2+ 22. Kf2 fxg4+ 23. Ke1 Qg3+ 24. Qxg3 Bxg3+ 25. Kd2 bxa6 26. a4) 20... fxg4 $11 {[%emt 0:02:07]} 21. Ne5 {[%emt 0:00:03]} Qa5 $2 {[%emt 0:08:32][%mdl 8192]} (21... Nxc5 $1 $11 22. Qb4 (22. dxc5 Ne4 $11) 22... a5 23. Qxc5 Ba7 24. Qxa7 (24. Qc3 $2 Ne4 $19) 24... Rxa7 25. hxg3 Raa8) 22. Qc3 $2 {[%emt 0:13:52] Active counter play!} (22. Nf7+ $18 {is more deadly.} Kg8 23. Bg5 Nxc5 24. dxc5 Qxc5+ 25. Be3) 22... Qxc3 $16 {[%emt 0:00:17]} 23. bxc3 {[%emt 0:00:01]} Bxe5 {[%emt 0:06:01]} 24. Rxe5 {[%emt 0:00:04]} Ne4 {[%emt 0:00:24]} 25. Bxe4 {[%emt 0:05:14]} dxe4 {[%emt 0:00:07]} 26. Rxe4 {[%emt 0:00:06][%cal Oa1b1]} b6 {[%emt 0:03:13]} 27. cxb6 {[%emt 0:06:10]} axb6 {[%emt 0:00:06]} 28. Rxg4 {[%emt 0:01:20]} Nc7 {[%emt 0:02:29]} 29. Bf4 {[%emt 0:04:19]} Nd5 {[%emt 0:04:07][%csl LRc3,LRf4]} 30. Be5 {[%emt 0:00:03]} Ra7 {[%emt 0:02:09]} 31. Rg3 {[%emt 0:01:58]} b5 {[%emt 0:00:22]} 32. h4 {[%emt 0:03:44]} Kg8 {[%emt 0:01:50]} 33. Rc1 {[%emt 0:00:30]} Nf4 {[%emt 0:02:51]} 34. Rc2 {[%emt 0:02:16] Dodges Ne2+} Rff7 {[%emt 0:04:42]} 35. Bd6 {[%emt 0:01:29]} h6 {[%emt 0:02:26]} 36. Kh2 {[%emt 0:00:19]} Ra4 {[%emt 0:00:19]} 37. Bb4 {[%emt 0:01:09]} Nd5 {[%emt 0:00:39]} 38. Re2 {[%emt 0:00:12]} Rf4 {[%emt 0:01:11]} ({Black should play} 38... Ra8 $14) 39. Kh3 {[%emt 0:02:24]} (39. Rg6 $1 $16) 39... Kf7 $14 {[%emt 0:00:14]} 40. Re5 {[%emt 0:00:00]} Nxb4 $2 {[%emt 0:00:00]} (40... Ra7 $11 {and Black stays safe.}) 41. axb4 $11 {[%emt 0:01:27][%mdl 4096] Endgame. KRR-KRR} (41. cxb4 Rxd4 42. Rf3+ Kg8 $14) 41... Ra1 {[%emt 0:13:10][%cal Ra1h1]} 42. Rf3 {[%emt 0:07:17]} Rf1 {[%emt 0:01:06]} 43. Rxf1 {[%emt 0:02:50]} Rxf1 $18 {[%emt 0:00:04] KR-KR} 44. Rc5 {[%emt 0:01:23]} Rf6 {[%emt 0:00:06]} 45. h5 {[%emt 0:00:22]} Ke7 {[%emt 0:01:41]} 46. Kg4 {[%emt 0:03:11]} Kd6 {[%emt 0:00:42]} 47. Rf5 {[%emt 0:03:47]} Re6 {[%emt 0:00:28]} 48. Kf4 {[%emt 0:04:54]} g6 {[%emt 0:07:00]} 49. hxg6 {[%emt 0:03:47]} Rxg6 {[%emt 0:00:05]} 50. g4 {[%emt 0:00:51]} (50. g3 $1 $16) 50... Re6 $14 {[%emt 0:00:52]} 51. Rh5 {[%emt 0:00:05]} Rf6+ {[%emt 0:00:33]} 52. Rf5 {[%emt 0:00:05]} Re6 {[%emt 0:00:22]} 53. Rh5 {[%emt 0:02:04]} Rf6+ {[%emt 0:00:13]} 54. Kg3 {[%emt 0:00:05]} Re6 {[%emt 0:00:33]} 55. Kh4 {[%emt 0:00:02]} (55. Rc5 $16) 55... Rf6 $1 $11 {[%emt 0:00:46]} 56. Rc5 {[%emt 0:03:35]} Rf1 {[%emt 0:06:42] [#]} (56... Rf3 $11 {keeps the balance.}) 57. d5 {[%emt 0:00:07]} cxd5 {[%emt 0:00:04]} 58. Rxb5 {[%emt 0:00:01]} Rh1+ {[%emt 0:00:29]} 59. Kg3 {[%emt 0:00:02]} Rg1+ {[%emt 0:01:10]} (59... Rc1 $11) 60. Kf4 $14 {[%emt 0:00:13] Rb6+ is the strong threat.} Rf1+ {[%emt 0:04:01]} 61. Ke3 {[%emt 0:00:01] Threatens to win with Rb6+.} Rg1 {[%emt 0:02:12][%cal Od6c6]} 62. Kf3 {[%emt 0:02:27]} (62. Rb6+ $1 $14 Ke5 63. Kf3 (63. Rxh6 Rxg4 64. Kd3 Rg2 $16) 63... Rf1+ 64. Ke3) 62... Rf1+ {[%emt 0:00:29]} ({Black should try} 62... Rc1 $1 $11) 63. Ke2 $1 {[%emt 0:01:26]} Rf4 {[%emt 0:01:05]} 64. Rb6+ {[%emt 0:00:09]} Kc7 {[%emt 0:00:28]} 65. Rg6 {[%emt 0:00:22]} Rc4 {[%emt 0:00:26]} 66. Kd3 {[%emt 0:00:02]} Kd7 {[%emt 0:00:12]} 67. Rg8 {[%emt 0:02:46]} Kc7 {[%emt 0:00:14]} 68. Rg7+ {[%emt 0:00:19]} Kc6 {[%emt 0:00:11]} 69. Rg6+ {[%emt 0:00:29]} (69. Re7 $14) 69... Kc7 {[%emt 0:00:06]} (69... Kd7 $11) 70. b5 $16 {[%emt 0:00:28]} Rf4 $2 {[%emt 0:02:40]} (70... Kd7 $16) 71. Kc2 $2 {[%emt 0:00:24]} ({Stronger than} 71. Rxh6 Rxg4 72. Rc6+ Kd7 $11) (71. Rc6+ $1 $18 {and the rest is easy.} Kd7 72. c4 (72. Rxh6 Rxg4 73. b6 Kc8 $11) (72. Rg6 Kc7 $14) 72... dxc4+ 73. Rxc4) 71... Re4 {[%emt 0:00:07]} 72. Kb2 {[%emt 0:01:19]} ({Reject} 72. Rxh6 $6 Rxg4 73. Rc6+ Kd7 $11) 72... Rf4 {[%emt 0:00:07]} 73. Ka3 {[%emt 0:00:16]} ({Much weaker is} 73. Rxh6 $6 Rxg4 74. Rc6+ Kd7 $11) (73. Kc1 $1 $16) 73... Re4 $1 $11 {[%emt 0:00:11]} 74. Rc6+ {[%emt 0:01:23]} Kd7 $1 {[%emt 0:00:12]} 75. Rc5 {[%emt 0:00:03]} Kd6 $1 {[%emt 0:00:10]} 76. Rc8 {[%emt 0:00:01] And now b6 would win.} Kd7 $1 {[%emt 0:00:12]} 77. Rg8 {[%emt 0:00:02]} Kc7 {[%emt 0:00:09]} 78. Rg6 {[%emt 0:00:04]} Rf4 {[%emt 0:00:06]} 79. Kb2 {[%emt 0:00:23]} Re4 {[%emt 0:00:13]} 80. Kc2 $1 {[%emt 0:00:03]} Rf4 {[%emt 0:00:24]} 81. Kd3 {[%emt 0:00:01]} Rc4 $1 {[%emt 0:00:20] Dodges Rc6+} 82. Ke3 {[%emt 0:00:38]} Re4+ $2 {[%emt 0:00:13][%mdl 8192] [#]} (82... Kc8 $14) 83. Kf3 $1 $18 {[%emt 0:00:05] White is clearly winning.} Rc4 {[%emt 0:00:49] Prevents Rc6+.} 84. Rxh6 {[%emt 0:00:37][%cal Oh6c6] Threatening mate with Rc6+!} Rxc3+ {[%emt 0:00:02]} 85. Kf4 {[%emt 0:00:00] aiming for b6+.} d4 {[%emt 0:04:40][%cal Bd5d4,Bd4d3][%mdl 32]} 86. b6+ {[%emt 0:00:02]} Kb7 {[%emt 0:00:18] [#]} 87. Rd6 $1 {[%emt 0:01:11]} Rc4 {[%emt 0:00:10]} 88. g5 {[%emt 0:02:43] Kf5 would kill now.} d3+ {[%emt 0:00:05]} 89. Kf5 {[%emt 0:00:16]} Rc5+ {[%emt 0:00:05] Weighted Error Value: White=0.30/Black=0.29 (precise) .  Loses game:     	---       	Black=4      Missed win:     	White=2     	---        Mistake:       	White=9     	Black=8      Inaccurate:     	White=4     	Black=1      OK:         	White=22    	Black=30     Best:        	White=4     	Black=8      Strong:       	White=3     	Black=6} 1-0

[Event "Chinese League Division-A 2024"]
[Site "Fuling Chongqing"]
[Date "2024.07.06"]
[Round "9.19"]
[White "Zhang, Xiaowen"]
[Black "Lu, Miaoyi"]
[Result "1/2-1/2"]
[ECO "C56"]
[WhiteElo "2261"]
[BlackElo "2449"]
[Annotator "RC"]
[PlyCount "77"]
[EventDate "2024.06.28"]
[EventType "team-tourn"]
[EventCountry "CHN"]
[SourceTitle "playchess.com"]
[Source "ChessBase"]
[SourceQuality "1"]
[TimeControl "40/5400+30:1800+30"]

1. e4 {[%emt 0:00:04]} e5 {[%emt 0:00:01]} 2. Nf3 {[%emt 0:00:31]} Nc6 {[%emt 0:00:03]} 3. Bc4 {[%emt 0:01:48]} Nf6 {[%emt 0:00:04]} 4. d4 {[%emt 0:01:10]} exd4 {[%emt 0:00:05]} 5. O-O {[%emt 0:00:28]} Nxe4 {[%emt 0:00:03]} 6. Re1 {[%emt 0:00:30]} d5 {[%emt 0:00:02]} 7. Bxd5 {[%emt 0:00:09]} Qxd5 {[%emt 0:00:02]} 8. Nc3 {[%emt 0:00:09]} Qd7 {[%emt 0:00:02]} 9. Nxe4 {[%emt 0:01:10]} Be7 {[%emt 0:00:02]} 10. Bg5 {[%emt 0:00:11]} O-O {[%emt 0:00:04]} 11. Bxe7 {[%emt 0:00:14]} Qxe7 {[%emt 0:00:01]} 12. Nxd4 {[%emt 0:00:09]} Bd7 {[%emt 0:00:02]} 13. Nc3 {[%emt 0:03:33]} Qb4 {[%emt 0:08:07]} 14. Ndb5 {[%emt 0:06:00]} Rad8 {[%emt 0:00:06]} 15. Nxc7 {[%emt 0:02:22]} Qxb2 {[%emt 0:00:04]} 16. N3d5 {[%emt 0:01:20]} Be6 {[%emt 0:00:26]} 17. c4 {[%emt 0:00:42]} Bxd5 {[%emt 0:19:36]} 18. Nxd5 {[%emt 0:00:13]} Rfe8 {[%emt 0:00:23]} 19. Qb3 {[%emt 0:07:16]} Re2 {[%emt 0:00:40]} 20. Rab1 {[%emt 0:05:53]} Rde8 {[%emt 0:08:10]} 21. Rxe2 {[%emt 0:00:30]} Qxe2 {[%emt 0:00:30]} 22. h3 {[%emt 0:00:30]} b6 {[%emt 0:00:30]} 23. Qa4 {[%emt 0:25:37]} Qe4 {[%emt 0:38:09]} 24. Rd1 {[%emt 0:14:01]} Na5 {[%emt 0:01:36]} 25. Ne3 {[%emt 0:01:03]} h6 {[%emt 0:09:53]} 26. Rd4 {[%emt 0:00:30]} Qc6 {[%emt 0:00:30]} 27. Qxc6 {[%emt 0:00:30]} Nxc6 {[%emt 0:00:30]} 28. Rd7 {[%emt 0:00:30]} Re7 {[%emt 0:00:30]} 29. Rd6 {[%emt 0:00:30]} Re6 {[%emt 0:00:30]} 30. Rd7 {[%emt 0:00:30]} Re7 {[%emt 0:00:30]} 31. Rd6 {[%emt 0:00:30]} Na5 {[%emt 0:00:30]} 32. Rd8+ {[%emt 0:00:30]} Kh7 {[%emt 0:00:30]} 33. Rc8 {[%emt 0:00:30]} Nb7 {[%emt 0:00:30]} 34. Kf1 {[%emt 0:00:30]} Rd7 {[%emt 0:00:30]} 35. Ke2 {[%emt 0:00:30]} Nd6 {[%emt 0:00:30]} 36. Rc6 {[%emt 0:00:30]} Ne4 {[%emt 0:00:30]} 37. Nd5 {[%emt 0:00:30]} Nd6 {[%emt 0:00:30]} 38. Kd3 {[%emt 0:00:30]} Kg8 {[%emt 0:00:30]} 39. Rc7 {[%emt 0:00:30]} 1/2-1/2